[Event "3rd Sunway Formentera-A 2024"]
[Site "Formentera"]
[Date "2024.04.19"]
[Round "10.3"]
[White "Pranav, V."]
[Black "Baklan, Vladimir"]
[Result "1-0"]
[ECO "C27"]
[WhiteElo "2604"]
[BlackElo "2531"]
[Annotator "TA"]
[PlyCount "145"]
[EventDate "2024.04.03"]
[EventType "swiss"]
[EventCountry "ESP"]
[SourceTitle "playchess.com"]
[Source "ChessBase"]
[SourceQuality "1"]
[TimeControl "40/5400+30:1800+30"]

{[%evp 68,145,129,129,151,118,122,126,137,155,185,178,162,170,172,161,202,218,241,232,268,263,250,218,230,232,227,150,224,238,231,225,238,239,235,198,236,177,211,231,400,387,387,333,372,368,337,250,257,266,1700,1026,1374,1005,978,850,668,606,29966,29966,29974,29975,29976,29977,29979,29980,29981,29982,29982,29983,29983,29984,29984,29985,29985,29986,29989,29990,29990,5089]} 1. e4 {[%emt 0:00:05]} e5 {[%emt 0:00:03]} 2. Nc3 {[%emt 0:00:17]} Nf6 {[%emt 0:00:15]} 3. Bc4 {[%emt 0:00:12]} Nxe4 {[%emt 0:07:49]} 4. Qh5 {[%emt 0:00:21]} Nd6 {[%emt 0:00:04]} 5. Qxe5+ {[%emt 0:00:20]} Qe7 {[%emt 0:00:04]} 6. Qxe7+ {[%emt 0:00:11]} Bxe7 {[%emt 0:00:03]} 7. Be2 {[%emt 0:00:10] C27: Vienna Game: 2...Nf6 3 Bc4 Nxe4.} c6 {[%emt 0:00:08]} 8. Nf3 {[%emt 0:00:29]} Nf5 {[%emt 0:01:05]} 9. g4 {[%emt 0:00:09]} Nh4 {[%emt 0:00:33]} 10. Nxh4 {[%emt 0:00:09]} Bxh4 {[%emt 0:00:05]} 11. Ne4 {[%emt 0:00:08]} Be7 {[%emt 0:03:50]} 12. d4 {[%emt 0:00:11]} d5 {[%emt 0:04:44]} 13. Ng3 {[%emt 0:00:03]} O-O {[%emt 0:02:27]} 14. Bf4 {[%emt 0:03:47]} c5 {[%emt 0:11:48]} 15. O-O-O $146 {[%emt 0:12:25]} ({Predecessor:} 15. dxc5 Bxc5 16. O-O Nc6 17. c3 Be6 18. Bf3 Rfd8 19. h3 d4 20. Ne4 Be7 21. Rfd1 {0-1 Daggupati,B (2467)-Theodorou,N (2577) New York Winter GM-A 2022 (8)}) 15... cxd4 {[%emt 0:05:23]} 16. Rxd4 {[%emt 0:00:56]} Be6 {[%emt 0:00:24]} 17. Nf5 {[%emt 0:05:56]} Bc5 {[%emt 0:10:45]} 18. Rd2 {[%emt 0:00:57]} Nc6 {[%emt 0:03:17]} 19. Bd6 {[%emt 0:04:38]} Bxd6 {[%emt 0:09:33]} 20. Nxd6 {[%emt 0:00:05]} b6 {[%emt 0:00:01]} 21. f4 {[%emt 0:09:06]} Rad8 {[%emt 0:03:03]} 22. Nb5 {[%emt 0:00:39]} f5 {[%emt 0:01:02]} 23. Nc7 {[%emt 0:08:40]} Bf7 {[%emt 0:03:39]} 24. gxf5 {[%emt 0:00:41]} Rd6 {[%emt 0:00:03]} 25. Bf3 {[%emt 0:05:02]} Ne7 {[%emt 0:01:27]} 26. Re1 {[%emt 0:07:38]} Nxf5 {[%emt 0:02:52]} 27. Bxd5 {[%emt 0:00:30]} Rc8 {[%emt 0:03:01]} 28. Re5 {[%emt 0:01:53]} Nh6 {[%emt 0:01:28]} 29. b3 {[%emt 0:05:55]} g6 {[%emt 0:03:44]} 30. Bxf7+ {[%emt 0:02:06]} Nxf7 {[%emt 0:00:04]} 31. Rxd6 {[%emt 0:00:08]} Nxd6 {[%emt 0:00:07]} 32. Re7 {[%emt 0:00:44]} Rf8 {[%emt 0:03:50]} 33. Rd7 {[%emt 0:03:44]} Nf5 {[%emt 0:04:12]} 34. Nb5 {[%emt 0:07:23]} a5 {[%emt 0:01:30]} 35. Rb7 {[%emt 0:01:44]} Rf6 {[%emt 0:00:04]} 36. Nc3 {[%emt 0:05:31]} Ne3 {[%emt 0:00:43]} 37. Kd2 {[%emt 0:03:58]} Nf1+ {[%emt 0:03:31]} 38. Ke2 $1 {[%emt 0:00:01]} Rxf4 {[%emt 0:03:03]} 39. Nd5 {[%emt 0:00:25]} Rf8 {[%emt 0:00:04]} 40. h3 {[%emt 0:00:00]} Ng3+ {[%emt 0:00:00]} 41. Ke3 {[%emt 0:02:49]} Nf5+ {[%emt 0:07:31]} 42. Kd3 {[%emt 0:00:45]} g5 {[%emt 0:00:12]} 43. Rxb6 {[%emt 0:01:44]} Kg7 {[%emt 0:00:11]} 44. Nc7 {[%emt 0:01:12]} Kf7 {[%emt 0:03:05]} 45. Ke4 {[%emt 0:02:39]} Ne7 {[%emt 0:00:49]} 46. c4 {[%emt 0:04:06]} h5 {[%emt 0:05:27]} 47. Rb5 {[%emt 0:08:11]} (47. Ne6 $6 Rg8 $16) 47... Rg8 {[%emt 0:00:19]} (47... Kg6 $16 48. Rb6+ (48. Rxa5 Rf4+ 49. Ke3 Rh4 $14) (48. Ne6 Rf2 $18) 48... Kf7) 48. Rxa5 $18 {[%emt 0:01:16]} g4 {[%emt 0:00:36]} 49. hxg4 $1 {[%emt 0:01:06]} (49. Rxh5 g3 50. Rh7+ Kg6 $19) 49... hxg4 {[%emt 0:01:35]} 50. Rh5 $1 {[%emt 0:00:08]} g3 {[%emt 0:01:56]} 51. Rh7+ {[%emt 0:00:28]} Kg6 {[%emt 0:05:32]} 52. Rh1 $1 {[%emt 0:02:37]} (52. Rxe7 $2 g2 53. Re6+ Kf7 $19) 52... Rh8 {[%emt 0:00:08]} 53. Rg1 {[%emt 0:02:38]} (53. Rxh8 g2 54. Nd5 Kg7 $17) 53... Nf5 $2 {[%emt 0:00:06]} (53... Rh4+ 54. Ke5 Rg4) 54. a4 $18 {[%emt 0:02:49]} Rb8 {[%emt 0:04:27]} 55. Nb5 $1 {[%emt 0:02:24]} Kg5 {[%emt 0:00:25]} 56. a5 {[%emt 0:01:00]} Ra8 {[%emt 0:00:49]} 57. a6 {[%emt 0:05:08]} Rxa6 {[%emt 0:05:53] [#]} 58. Nd4 $1 {[%emt 0:00:01]} Nxd4 $2 {[%emt 0:00:05]} (58... Nd6+ 59. Kf3 Kf6) 59. Kxd4 $18 {[%emt 0:00:10]} Kf4 {[%emt 0:00:06]} 60. c5 {[%emt 0:00:26]} Kf3 {[%emt 0:04:03]} 61. Kd5 {[%emt 0:04:20]} Ra3 {[%emt 0:03:44]} 62. Rb1 {[%emt 0:01:24]} Ra2 {[%emt 0:03:22]} 63. c6 {[%emt 0:00:21]} g2 {[%emt 0:00:32] [#]} 64. c7 $1 {[%emt 0:00:31]} Rc2 {[%emt 0:00:14]} 65. Kd6 {[%emt 0:00:07]} Ke2 {[%emt 0:00:04]} 66. b4 {[%emt 0:01:47]} Rd2+ {[%emt 0:00:22]} 67. Kc6 {[%emt 0:00:02]} Rd1 {[%emt 0:00:11]} 68. c8=Q {[%emt 0:00:08]} ({Worse is} 68. c8=R g1=Q (68... g1=R $2 {loses.} 69. Rxd1 Rxd1 70. b5 $18) 69. Rxd1 Qxd1 $19 (69... Kxd1 $2 70. Kb5 $17)) 68... Rxb1 {[%emt 0:01:52]} 69. Qg4+ {[%emt 0:00:04]} Ke3 {[%emt 0:00:39]} 70. Qg3+ {[%emt 0:00:04]} Kd4 {[%emt 0:00:12]} 71. Qxg2 {[%emt 0:00:03]} Rxb4 {[%emt 0:00:04]} 72. Qd2+ {[%emt 0:00:03]} Kc4 {[%emt 0:00:05]} 73. Qc2+ {[%emt 0:00:03]} 1-0

[Event "3rd Sunway Formentera-A 2024"]
[Site "Formentera"]
[Date "2024.04.19"]
[Round "10.4"]
[White "Song, Yuxin"]
[Black "Mohamed Anees M"]
[Result "1/2-1/2"]
[ECO "C67"]
[WhiteElo "2379"]
[BlackElo "2253"]
[Annotator "TA"]
[PlyCount "63"]
[EventDate "2024.04.03"]
[EventType "swiss"]
[EventCountry "ESP"]
[SourceTitle "playchess.com"]
[Source "ChessBase"]
[SourceQuality "1"]
[TimeControl "40/5400+30:1800+30"]

{[%evp 18,63,13,16,21,16,23,16,25,23,27,3,0,0,6,3,4,2,11,8,2,0,0,0,0,0,132,0,0,0,0,0,0,0,0,0,0,0,0,0,0,0,82,76,76,0,0,0]} 1. e4 {[%emt 0:00:00]} e5 {[%emt 0:00:00]} 2. Nf3 {[%emt 0:00:00]} Nc6 {[%emt 0:00:00]} 3. Bb5 {[%emt 0:00:00]} Nf6 {[%emt 0:00:00]} 4. O-O {[%emt 0:00:00][%cal Bh1f1,Bf1e1,Be1e5][%mdl 32]} Nxe4 5. Re1 {[%emt 1:33:00]} Nd6 6. Nxe5 {[%emt 0:00:00]} Nxe5 {[%emt 0:00:00]} 7. Rxe5+ Be7 8. Bf1 {[%emt 0:01:30]} O-O 9. d4 Bf6 10. Re1 {[%emt 0:00:00]} Re8 11. c3 {[%emt 0:00:00]} Rxe1 12. Qxe1 {[%emt 0:00:00]} Ne8 {[%emt 0:00:00][%cal Bd6e8,Be8g7,Bg7f5][%mdl 32]} 13. Bf4 d5 14. Bd3 {[%emt 0:00:00]} g6 {[%emt 0:00:59]} 15. Nd2 {[%emt 0:00:00][%cal Bb1d2,Bd2f3,Bf3e5][%mdl 32]} Ng7 16. Qe2 c6 17. Re1 {[%emt 0:00:00]} Bf5 18. Bxf5 Nxf5 {[%emt 1:38:31]} 19. Nf3 {[%emt 0:00:00]} Ng7 {[%emt 0:00:00]} 20. Be5 {[%emt 0:00:00]} Bxe5 {[%emt 0:00:00]} 21. Qxe5 {[%emt 0:00:00]} Qe8 {[%emt 0:00:00]} (21... Qb6 $11) 22. Qxe8+ {[%emt 0:00:00]} ({Better is} 22. Qf6 $16 Ne6 23. Ng5) 22... Rxe8 $11 {[%emt 0:00:00]} 23. Rxe8+ {[%emt 0:00:00]} Nxe8 $16 {[%emt 0:00:00][%mdl 4096] Endgame. KN-KN} 24. Ne5 {[%emt 0:00:00]} Nd6 {[%emt 0:00:00]} 25. Nd3 {[%emt 0:00:00]} Kf8 {[%emt 0:00:00]} 26. Kf1 {[%emt 0:00:00]} Ke7 {[%emt 0:00:00]} 27. Ke2 {[%emt 0:00:00]} h5 {[%emt 0:00:00]} 28. h4 {[%emt 0:00:00]} b6 {[%emt 0:00:00]} 29. b3 {[%emt 0:00:00]} (29. Ne5 $5) 29... Kd7 {[%emt 0:00:00]} (29... f6 $11 {keeps the balance.}) 30. Ne5+ {[%emt 0:00:00]} Kc7 {[%emt 0:00:00]} 31. Nd3 {[%emt 0:00:00] White is more active.} (31. Ke3 $16) 31... Kd7 $11 {[%emt 0:00:00]} 32. Ne5+ {[%emt 0:00:00] Weighted Error Value: White=0.13 (very precise) /Black=0.26 (precise) .  Mistake:       	White=2     	Black=2      OK:         	White=6     	Black=10     Best:        	White=1     	---} 1/2-1/2

[Event "3rd Sunway Formentera-A 2024"]
[Site "Formentera"]
[Date "2024.04.19"]
[Round "10.5"]
[White "Fernandez Guillen, Ernesto J."]
[Black "Moussard, Jules"]
[Result "0-1"]
[ECO "C54"]
[WhiteElo "2474"]
[BlackElo "2610"]
[Annotator "TA"]
[PlyCount "78"]
[EventDate "2024.04.03"]
[EventType "swiss"]
[EventCountry "ESP"]
[SourceTitle "playchess.com"]
[Source "ChessBase"]
[SourceQuality "1"]
[TimeControl "40/5400+30:1800+30"]

{[%evp 18,78,8,17,18,29,18,14,28,24,20,21,23,-14,22,-22,-13,-31,0,0,-8,-17,-10,-99,-35,-41,-25,-14,-113,-192,-115,-120,-91,-89,-52,-73,-70,-141,-120,-158,-171,-186,-160,-149,-138,-173,-184,-367,-339,-490,-447,-825,-816,-832,-822,-793,-777,-1561,-831,-826,-794,-1229,-802]} 1. e4 {[%emt 0:00:05]} e5 {[%emt 0:04:17]} 2. Nf3 {[%emt 0:00:54]} Nc6 {[%emt 0:00:05]} 3. Bc4 {[%emt 0:00:09]} Nf6 {[%emt 0:00:05]} 4. d3 {[%emt 0:00:07]} Bc5 {[%emt 0:00:06]} 5. h3 {[%emt 0:01:44]} d6 {[%emt 0:00:22]} 6. c3 {[%emt 0:00:16]} a5 {[%emt 0:00:21] C54: Giuoco Piano: 4 c3 Nf6, main lines with 5 d4 and 5 d3.} 7. Nbd2 {[%emt 0:00:19]} O-O {[%emt 0:01:22]} 8. O-O {[%emt 0:02:02]} h6 {[%emt 0:01:18]} 9. Re1 {[%emt 0:00:26]} Be6 {[%emt 0:02:09]} 10. Bb5 {[%emt 0:02:29]} Ba7 {[%emt 0:09:22]} 11. Nf1 {[%emt 0:04:28]} Ne7 {[%emt 0:00:18]} 12. Ng3 {[%emt 0:08:53]} c6 {[%emt 0:08:09]} 13. Ba4 {[%emt 0:00:50]} b5 {[%emt 0:03:13]} 14. Bc2 {[%emt 0:00:54]} a4 {[%emt 0:00:22]} 15. Nh4 $146 {[%emt 0:03:22]} ({Predecessor:} 15. d4 Ng6 16. b3 axb3 17. axb3 Bb6 18. Be3 Rxa1 19. Qxa1 Qc7 20. Qb2 c5 21. d5 {½-½ Niemann,H (2688)-Caruana,F (2783) Chess.com Rapid Wk22 KO 2022 (2.1)}) 15... d5 {[%emt 0:08:09]} 16. Qf3 {[%emt 0:08:09]} Ng6 {[%emt 0:04:12]} 17. Nhf5 {[%emt 0:03:50]} d4 {[%emt 0:02:01]} (17... Re8 {simplifies} 18. Be3 Bxe3 19. fxe3 Bxf5 20. Nxf5 Re6) 18. cxd4 {[%emt 0:01:36]} Bxd4 {[%emt 0:02:45]} 19. Nxd4 {[%emt 0:02:30]} Qxd4 {[%emt 0:04:55]} 20. Bxh6 {[%emt 0:12:36]} (20. a3 $11 {keeps the balance.}) 20... Nh4 {[%emt 0:16:54]} (20... Qxb2 $1 $17 21. Rec1 b4 (21... gxh6 22. Qxf6 Nf4 23. Rab1 $16)) 21. Qe3 $15 {[%emt 0:01:12]} gxh6 {[%emt 0:00:33]} 22. Qxh6 {[%emt 0:00:12]} Ng6 {[%emt 0:00:02]} (22... Qxb2 $2 23. Qxf6 (23. Qxh4 Nh7 $18) 23... Rfd8 24. Qxh4 $18) 23. Re3 {[%emt 0:03:38]} (23. Bd1 $17) 23... Rfc8 {[%emt 0:01:20]} ({Better is} 23... Qxb2 $19 24. Rf1 Qxc2) 24. Rf3 $17 {[%emt 0:04:15]} Qd8 {[%emt 0:00:06]} (24... Qxb2 $6 25. Rxf6 Qxa1+ 26. Kh2 $11) 25. d4 {[%emt 0:01:30] [#]} Nh7 $1 {[%emt 0:01:32]} ({Reject} 25... exd4 $6 26. e5 Qf8 27. Qd2 $11 (27. Qxf8+ Rxf8 28. Rxf6 Nxe5 $15)) 26. Nh5 {[%emt 0:01:39]} Qf8 {[%emt 0:00:16]} (26... Qxd4 27. Qg7#) 27. Qe3 {[%emt 0:00:28] [#]} (27. Qc1 $1 $15) 27... exd4 $1 $17 {[%emt 0:01:44]} 28. Qxd4 {[%emt 0:07:53]} Qh6 {[%emt 0:00:35]} 29. Qc5 {[%emt 0:02:05]} Rd8 {[%emt 0:00:13]} (29... Qg5 30. Qxg5 Nxg5 31. Rg3 $14) 30. Rg3 {[%emt 0:01:39]} Rd2 {[%emt 0:00:19]} 31. f4 {[%emt 0:01:11]} Rad8 {[%emt 0:00:27]} (31... Rxc2 32. Qxc2 Qxh5 33. f5 $17) 32. Rc1 $2 {[%emt 0:08:36]} (32. b3) 32... Bxa2 $19 {[%emt 0:04:51]} 33. Qe5 {[%emt 0:07:39]} (33. Kh2 {was necessary.}) 33... Bc4 {[%emt 0:03:13]} 34. Nf6+ {[%emt 0:03:16]} (34. Bxa4 $142 R2d3 (34... Be2 $2 35. Rxc6 Bxh5 36. Bb3 $19) 35. Rxd3 Rxd3 (35... Bxd3 $2 36. Qc7 $19) 36. Qb8+ Nhf8 37. Bd1) 34... Nxf6 $19 {[%emt 0:07:03]} 35. Qxf6 {[%emt 0:00:02]} R8d6 {[%emt 0:01:11]} 36. Qf5 {[%emt 0:01:38]} Kf8 {[%emt 0:00:36]} 37. Rg5 {[%emt 0:03:43]} Be6 {[%emt 0:01:59]} 38. Qc5 {[%emt 0:01:07]} Nxf4 {[%emt 0:00:20]} 39. Rf1 {[%emt 0:00:13]} Qxg5 {[%emt 0:03:55]} 0-1

[Event "3rd Sunway Formentera-A 2024"]
[Site "Formentera"]
[Date "2024.04.19"]
[Round "10.6"]
[White "Colbow, Collin"]
[Black "Raja Rithvik R"]
[Result "1-0"]
[ECO "B90"]
[WhiteElo "2376"]
[BlackElo "2532"]
[Annotator "TA"]
[PlyCount "111"]
[EventDate "2024.04.03"]
[EventType "swiss"]
[EventCountry "ESP"]
[SourceTitle "playchess.com"]
[Source "ChessBase"]
[SourceQuality "1"]
[TimeControl "40/5400+30:1800+30"]

{[%evp 54,111,0,0,0,0,0,0,0,0,0,-19,0,-8,0,0,0,0,0,0,77,83,40,43,49,52,32,57,52,0,21,33,21,21,21,21,24,23,24,28,28,28,28,28,28,28,28,28,28,28,28,33,43,35,649,649,29995,29996,29996,29997]} 1. e4 {[%emt 0:00:03]} c5 {[%emt 0:06:40]} 2. Nf3 {[%emt 0:00:10]} d6 {[%emt 0:00:04]} 3. d4 {[%emt 0:00:07]} cxd4 {[%emt 0:00:05]} 4. Nxd4 {[%emt 0:00:06]} Nf6 {[%emt 0:00:04]} 5. Nc3 {[%emt 0:00:08]} a6 {[%emt 0:00:04]} 6. Qd3 {[%emt 0:00:17] B90: Sicilian Najdorf: Unusual White 6th moves, 6 Be3 Ng4 and 6 Be3 e5.} Nbd7 {[%emt 0:00:53]} 7. Be2 {[%emt 0:00:12]} g6 {[%emt 0:00:09]} 8. Bg5 {[%emt 0:00:15]} Bg7 {[%emt 0:07:38]} 9. O-O-O {[%emt 0:00:11]} h6 {[%emt 0:01:02]} 10. Bh4 {[%emt 0:00:27]} O-O {[%emt 0:02:49]} 11. f4 {[%emt 0:00:36]} e5 {[%emt 0:02:14]} 12. Nb3 {[%emt 0:02:01]} exf4 {[%emt 0:01:55]} 13. Qxd6 {[%emt 0:00:54]} Nxe4 {[%emt 0:01:10]} 14. Bxd8 {[%emt 0:00:34]} Nxd6 {[%emt 0:00:04]} 15. Be7 {[%emt 0:01:22]} Re8 {[%emt 0:01:39]} 16. Bxd6 {[%emt 0:00:11]} Bxc3 {[%emt 0:00:05]} 17. Bf3 {[%emt 0:03:08]} Bg7 $146 {[%emt 0:02:33]} ({Predecessor:} 17... Bf6 18. Bxf4 Ne5 19. Bd5 Bg4 20. Rde1 Re7 21. h3 Be6 22. Bxe6 Rxe6 23. Nd4 Rd6 24. Bxe5 Bxe5 25. Rxe5 Rxd4 {½-½ Tomilin,A (2308)-Gromotka,H (2352) EU-ch 2021 sf15 email}) 18. Bxf4 {[%emt 0:00:25]} Ne5 {[%emt 0:01:49]} 19. Rde1 {[%emt 0:00:57]} g5 {[%emt 0:01:14]} 20. Bg3 {[%emt 0:09:01]} Rb8 {[%emt 0:00:16]} 21. Na5 {[%emt 0:16:52]} f5 {[%emt 0:10:07]} 22. Nc4 {[%emt 0:06:34]} f4 {[%emt 0:01:24]} 23. Bf2 {[%emt 0:00:28]} Bd7 {[%emt 0:08:48]} 24. Nxe5 {[%emt 0:04:19]} Rxe5 {[%emt 0:02:22]} 25. Rxe5 {[%emt 0:04:54]} Bxe5 {[%emt 0:00:29]} 26. Re1 {[%emt 0:16:17]} Bf6 {[%emt 0:02:32]} 27. Rd1 {[%emt 0:05:15]} Bc6 $1 {[%emt 0:05:06]} 28. Bxc6 {[%emt 0:04:59]} bxc6 {[%emt 0:00:05]} 29. Bd4 {[%emt 0:09:38]} Be7 {[%emt 0:07:38]} 30. Bf2 {[%emt 0:01:57]} g4 {[%emt 0:13:55]} 31. c3 {[%emt 0:01:12]} Kf7 {[%emt 0:05:12]} 32. Rd4 {[%emt 0:02:31]} Ke6 {[%emt 0:02:46]} 33. Kc2 {[%emt 0:03:06]} (33. Rxf4 $2 Bg5 34. Be3 h5 $19 (34... Bxf4 $2 35. Bxf4 Rf8 36. Bxh6 $19)) 33... Bd6 {[%emt 0:04:34]} 34. Ra4 {[%emt 0:01:18]} Rb5 {[%emt 0:06:27]} 35. Rxa6 {[%emt 0:01:20]} Rh5 {[%emt 0:00:07]} 36. Bg1 $1 {[%emt 0:02:12]} (36. Rxc6 $2 Rxh2 37. Kd3 Kd7 $19 (37... Rxg2 $2 38. Bc5 $19)) 36... g3 {[%emt 0:02:25]} (36... f3 $11 37. gxf3 (37. Rxc6 $2 fxg2 38. Ra6 Rf5 $19) 37... gxf3) 37. hxg3 $16 {[%emt 0:01:46]} (37. Rxc6 $2 gxh2 38. Bxh2 Rxh2 $19) 37... fxg3 {[%emt 0:01:21]} 38. Ra4 {[%emt 0:03:16]} Rh1 {[%emt 0:00:35]} 39. Re4+ $1 {[%emt 0:00:22]} Kf5 {[%emt 0:00:59]} 40. Re1 {[%emt 0:00:00]} h5 $1 {[%emt 0:00:00]} 41. Rd1 {[%emt 0:12:04]} (41. b4 $14) 41... h4 {[%emt 0:07:11]} (41... Rh2 $5 42. Rd2 (42. Rxd6 $2 Rxg2+ 43. Kd3 Rxg1 $19) (42. Bxh2 gxh2 43. b4 Kg4 $11) 42... h4 $11 (42... Rh1 43. Bb6 $17)) 42. a4 {[%emt 0:02:04]} Rh2 $1 {[%emt 0:07:25]} 43. Bxh2 {[%emt 0:12:02]} (43. Rxd6 $2 Rxg2+ 44. Kd3 Rxg1 45. Rxc6 g2 $19) 43... gxh2 {[%emt 0:00:03]} 44. a5 {[%emt 0:00:56]} (44. Rxd6 $2 h1=Q (44... h1=R $2 45. b4 $18) 45. Rd2 Qa1 $19) 44... Kg4 {[%emt 0:00:46]} 45. b4 {[%emt 0:02:46]} (45. Rxd6 $2 h1=Q (45... h1=R $2 46. a6 $18) 46. Rd2 Qa1 $19) 45... Kg3 {[%emt 0:01:40]} 46. a6 {[%emt 0:01:06]} (46. Rxd6 $2 h1=Q (46... h1=R $2 47. Rg6+ Kh2 48. Rg4 $18) 47. Rd2 Qe1 $19) 46... Bb8 {[%emt 0:00:05]} 47. c4 {[%emt 0:00:14]} Kxg2 {[%emt 0:11:16]} 48. b5 {[%emt 0:00:06]} cxb5 $1 {[%emt 0:00:13]} 49. c5 $1 {[%emt 0:01:05]} h1=Q {[%emt 0:00:22]} (49... h1=R $2 {perishes.} 50. Rxh1 Kxh1 51. c6 $18) 50. Rxh1 {[%emt 0:00:03]} Kxh1 {[%emt 0:00:05]} 51. c6 {[%emt 0:00:06]} h3 {[%emt 0:00:05]} 52. a7 {[%emt 0:03:28]} Bxa7 {[%emt 0:00:10]} 53. c7 {[%emt 0:00:02]} h2 {[%emt 0:00:22]} 54. c8=Q {[%emt 0:00:04]} ({Weaker is} 54. c8=R Kg2 55. Rg8+ Kh3 56. Rh8+ Kg2 57. Rg8+ Kf1 $11) 54... Bf2 {[%emt 0:01:14]} 55. Qg4 {[%emt 0:01:01]} b4 {[%emt 0:00:24]} 56. Kd3 {[%emt 0:00:16]} ({And not} 56. Qxb4 Bg3 $11) 1-0

[Event "3rd Sunway Formentera-A 2024"]
[Site "Formentera"]
[Date "2024.04.19"]
[Round "10.7"]
[White "Prado, Alexandra"]
[Black "Botez, Alexandra"]
[Result "1-0"]
[ECO "C02"]
[WhiteElo "1839"]
[BlackElo "1970"]
[Annotator "TA"]
[PlyCount "85"]
[EventDate "2024.04.03"]
[EventType "swiss"]
[EventCountry "ESP"]
[SourceTitle "playchess.com"]
[Source "ChessBase"]
[SourceQuality "1"]
[TimeControl "40/5400+30:1800+30"]

{[%evp 16,85,31,12,37,30,106,90,126,91,99,97,105,14,64,54,89,-12,27,32,27,34,100,54,225,225,226,207,208,218,239,237,223,224,337,327,508,448,435,442,419,427,528,442,400,419,479,479,564,554,662,667,662,647,610,595,727,698,860,783,1148,1150,1121,1226,1193,1126,1096,963,961,947,29978,5110]} 1. e4 {[%emt 0:01:45]} e6 {[%emt 0:00:07]} 2. d4 {[%emt 0:00:39]} d5 {[%emt 0:00:07]} 3. e5 {[%emt 0:00:16]} c5 {[%emt 0:00:08]} 4. c3 {[%emt 0:02:19]} Nc6 {[%emt 0:00:15]} 5. Nf3 {[%emt 0:00:50]} Nge7 {[%emt 0:00:47]} 6. Na3 {[%emt 0:00:21]} Nf5 {[%emt 0:01:03]} 7. Nc2 {[%emt 0:02:02]} Be7 {[%emt 0:03:49]} 8. Bd3 {[%emt 0:07:47]} cxd4 {[%emt 0:00:32]} 9. cxd4 {[%emt 0:00:06]} h6 {[%emt 0:04:19]} 10. O-O {[%emt 0:08:02]} g5 {[%emt 0:00:37]} (10... h5 $11) 11. g4 $16 {[%emt 0:01:43]} Ng7 {[%emt 0:04:15] White is better.} 12. Re1 {[%emt 0:09:27]} Bd7 {[%emt 0:01:35]} 13. Bd2 {[%emt 0:07:11]} a5 {[%emt 0:03:03]} 14. Na3 {[%emt 0:09:33] White is more active.} (14. Qe2 $16) 14... Nb4 {[%emt 0:02:31]} (14... Bb4 $11) 15. Bb5 {[%emt 0:04:25]} Bc6 {[%emt 0:02:30]} 16. Qa4 {[%emt 0:02:32]} (16. Be2 $16) 16... Qb6 {[%emt 0:00:50]} (16... O-O {simplifies} 17. Qd1 Bxb5 18. Nxb5 Qd7) 17. Bxb4 {[%emt 0:04:53]} Bxb4 {[%emt 0:00:21]} 18. Rec1 {[%emt 0:03:23]} Kd7 {[%emt 0:00:19]} ({Better is} 18... Rc8 $14) 19. Rc2 {[%emt 0:02:36]} ({White should play} 19. Bxc6+ $16 bxc6 20. Nc2) 19... Bxa3 $2 {[%emt 0:06:44] This move loses the game for Black.} (19... Rac8 $14) 20. Bxc6+ $18 {[%emt 0:00:28]} bxc6 {[%emt 0:00:04]} 21. Qxa3 {[%emt 0:00:16]} Qb4 {[%emt 0:00:10]} 22. Qd3 {[%emt 0:02:46]} Rab8 {[%emt 0:01:18]} 23. Rac1 {[%emt 0:02:33]} Rb6 {[%emt 0:00:09]} 24. a3 {[%emt 0:01:43]} Qe7 {[%emt 0:03:30]} (24... Qa4 {was necessary.} 25. Kg2 Kc7) 25. Rc5 {[%emt 0:01:58]} a4 {[%emt 0:06:44]} (25... Rc8 $142 26. Qh7 (26. Rxa5 Ne8 $18) 26... Ne8 27. Qxh6 (27. Rxa5 Rb3 $18) 27... Rxb2 28. Nxg5 (28. Rxa5 Rb5 $18) 28... Rd2) 26. Qc2 {[%emt 0:02:00]} Rc8 {[%emt 0:02:14]} 27. Qxa4 {[%emt 0:00:36]} Qd8 {[%emt 0:00:27]} 28. b4 {[%emt 0:05:02]} Ra8 {[%emt 0:03:16]} 29. Ra5 {[%emt 0:00:15]} Rxa5 {[%emt 0:00:36]} 30. Qxa5 {[%emt 0:00:34]} ({Don't take} 30. bxa5 Qa8 31. Nd2 Ke7) 30... Qb8 {[%emt 0:13:33] Black is weak on the dark squares} 31. Qc5 {[%emt 0:00:56]} Ra6 {[%emt 0:00:09] [#]} 32. a4 $1 {[%emt 0:04:52][%cal Ba3a4,Ba4b5,Bb5b6,Bb6b7][%mdl 544]} Ke8 {[%emt 0:03:13]} (32... Ne8 33. Qf8) 33. b5 {[%emt 0:00:46]} cxb5 {[%emt 0:00:44]} 34. axb5 {[%emt 0:01:23]} Rb6 {[%emt 0:00:09]} 35. Rb1 {[%emt 0:00:41]} Qd8 {[%emt 0:00:21]} 36. Kg2 {[%emt 0:00:41]} Rb8 {[%emt 0:01:07]} 37. b6 {[%emt 0:00:26] b7 would now be deadly.} Qc8 {[%emt 0:00:45] [#]} 38. b7 $1 {[%emt 0:01:34][%mdl 512]} Qxc5 {[%emt 0:02:23]} 39. dxc5 {[%emt 0:00:02]} Kd7 {[%emt 0:00:08]} 40. Nd4 {[%emt 0:00:00]} Kc7 {[%emt 0:00:00]} 41. c6 {[%emt 0:01:10]} Ne8 {[%emt 0:09:03]} 42. Ra1 {[%emt 0:06:25] Black must now prevent Ra8.} f6 {[%emt 0:00:10]} 43. Ra8 {[%emt 0:00:23] Weighted Error Value: White=0.23 (precise) /Black=0.64.  Loses game:     	---       	Black=1      Mistake:       	White=3     	Black=5      Inaccurate:     	---       	Black=3      OK:         	White=13    	Black=5      Best:        	White=2     	---} (43. Ra6 $142 Rxb7 44. Nxe6+ (44. cxb7 Kxb7 45. Rxe6 fxe5 $18) 44... Kb8 45. cxb7 Kxb7 46. exf6 Kxa6 47. f7 Nd6 48. f8=Q (48. f8=R Kb7 $18)) 1-0